bitfinex-derivatives/quotes_ETHF0:USTF0_20260112
["timestamp","ask_amount","ask_price","bid_price","bid_amount"]
[1768177310678,0.00279263,3126.0,3123.9,0.15227141]
[1768177310976,0.84909686,3125.9,3123.9,0.15227141]
[1768177311276,0.00279263,3126.0,3124.0,0.15227141]
[1768177311472,0.84905571,3125.9,3124.1,0.15227141]
[1768177311666,0.00279263,3126.0,3124.1,0.15227141]
[1768177311865,0.84905496,3125.9,3124.2,11.7]
[1768177312072,0.00279263,3126.0,3124.3,0.15227141]
[1768177312281,0.8490947,3125.9,3124.3,0.15227141]
[1768177312575,0.00279263,3126.0,3124.3,0.15227141]
[1768177312778,0.8491072,3125.9,3124.3,0.15227141]
[1768177313074,0.00279263,3126.0,3124.3,0.15227141]
[1768177313276,0.84910722,3125.9,3124.3,0.15227141]
[1768177313476,0.00279263,3126.0,3124.3,0.15227141]
[1768177313673,0.8491256,3125.9,3124.3,0.15227141]
[1768177313871,0.00279263,3126.0,3124.3,0.15227141]
[1768177314076,0.84912539,3125.9,3124.3,0.15227141]
[1768177314276,0.00279263,3126.0,3124.3,0.15227141]
[1768177314475,0.84913817,3125.9,3124.3,0.15227141]
[1768177314786,0.00279263,3126.0,3124.3,0.15227141]
[1768177315078,0.84913838,3125.9,3124.3,0.15227141]
[1768177315379,0.84913838,3125.8,3124.3,0.15227141]
[1768177315579,0.84913838,3125.7,3124.3,0.15227141]
[1768177315775,0.00279263,3126.0,3124.3,0.15227141]
[1768177315976,0.84911983,3125.9,3124.3,0.15227141]
[1768177316278,0.84911983,3125.8,3124.3,0.15227141]
[1768177316473,0.84911983,3125.7,3124.3,0.15227141]
[1768177316674,0.00279263,3126.0,3124.3,0.15227141]
[1768177316877,0.84909424,3125.9,3124.3,0.15227141]
[1768177317077,0.84909424,3125.8,3124.3,0.15227141]
[1768177317287,0.84909424,3125.7,3124.3,0.15227141]
[1768177317573,0.84909424,3125.6,3124.3,0.15227141]
[1768177317772,0.16296263,3126.0,3124.3,0.15227141]
[1768177317980,1.00933109,3125.9,3124.3,0.15227141]
[1768177318275,1.00934109,3125.8,3124.3,0.15227141]
[1768177318574,0.84916109,3125.7,3124.3,0.15227141]
[1768177319469,0.16019,3125.6,3124.3,0.15227141]
[1768177319679,0.84916109,3125.5,3124.3,0.15227141]
[1768177321371,0.00279263,3126.0,3124.3,0.15227141]
[1768177321670,0.84909603,3125.9,3124.3,0.15227141]
[1768177321870,0.84909603,3125.8,3124.3,0.15227141]
[1768177322069,0.00279263,3126.0,3124.3,0.15227141]
[1768177322070,0.84909603,3125.7,3124.3,0.15227141]
[1768177322275,0.16017,3125.9,3124.3,0.15227141]
[1768177322473,0.1602,3125.5,3123.8,0.15497001]
[1768177322670,0.84902693,3125.4,3123.8,0.15497001]
[1768177323268,0.16021,3125.3,3123.8,0.15497001]
[1768177323479,0.84902693,3125.2,3123.8,0.15497001]
[1768177323686,0.84902693,3125.1,3123.8,0.15497001]
[1768177323982,0.16021,3125.3,3123.8,0.15497001]
[1768177324183,0.84901235,3125.2,3123.8,0.15497001]
[1768177324490,0.84901235,3125.1,3123.8,0.15497001]
[1768177324685,0.16021,3125.3,3123.8,0.15497001]
[1768177324880,0.84892609,3125.2,3123.8,0.15497001]
[1768177325077,0.84892609,3125.1,3123.8,0.15497001]
[1768177325275,0.16021,3125.3,3123.8,0.15497001]
[1768177325583,0.84887376,3125.2,3123.8,0.15497001]
[1768177325785,0.00279263,3126.0,3123.8,0.15497001]
[1768177325975,0.1602,3125.5,3123.8,0.15497001]
[1768177326175,1.00905794,3125.4,3123.8,0.15497001]
[1768177326383,0.84885794,3125.3,3123.8,0.15497001]
[1768177326776,0.84885794,3125.3,3123.8,0.0026986]
[1768177326777,1.00905794,3125.3,3123.8,0.0026986]
[1768177326971,0.84885794,3125.2,3123.8,0.0026986]
[1768177327688,1.00906794,3125.2,3123.8,0.0026986]
[1768177327986,0.84885794,3125.1,3123.8,0.0026986]
[1768177330180,1.00907794,3125.1,3123.8,0.0026986]
[1768177330382,0.84885794,3125.0,3123.8,0.0026986]
[1768177334274,0.84885794,3125.0,3123.3,0.14505515]
[1768177334579,0.16024,3124.7,3123.3,0.14505515]
[1768177334778,0.84885794,3124.6,3123.3,0.14505515]
[1768177335491,0.84885794,3124.6,3123.3,0.14918629]
[1768177335692,0.84885794,3124.6,3123.3,0.00413114]
[1768177337006,1.00909794,3124.6,3123.3,0.00413114]
[1768177337204,0.84885794,3124.5,3123.3,0.00413114]
[1768177337413,0.84885794,3124.5,3122.8,0.14049802]
[1768177337602,0.16025,3124.4,3122.8,0.14049802]
[1768177337807,0.84885794,3124.3,3122.8,0.14049802]
[1768177338303,0.84885794,3124.3,3122.8,0.14310652]
[1768177338703,1.00911794,3124.3,3122.8,0.0026085]
[1768177338902,0.16028,3123.9,3122.8,0.0026085]
[1768177339102,0.84885794,3123.8,3121.8,0.14049802]
[1768177339499,5.30585794,3123.7,3121.8,0.14049802]
[1768177339700,0.84885794,3123.6,3121.8,0.14049802]
[1768177339909,0.84885794,3123.5,3121.8,0.14049802]
[1768177340105,0.84885794,3123.4,3121.8,0.14404409]
[1768177340408,0.84885794,3123.3,3121.8,0.14404409]
[1768177340610,0.00282768,3123.5,3121.8,0.14404409]
[1768177340906,1.00837753,3123.4,3121.8,0.14404409]
[1768177341107,0.84807753,3123.3,3121.8,0.14404409]
[1768177342108,0.84807753,3123.2,3121.8,0.00354607]
[1768177342308,0.84807753,3123.1,3121.8,0.00354607]
[1768177342611,0.84807753,3123.0,3121.8,0.00354607]
[1768177342802,0.84807753,3122.9,3121.8,0.00354607]
[1768177343003,0.84691164,3122.8,3121.8,0.00110358]
[1768177343304,0.16033,3122.9,3121.8,0.00110358]
[1768177343305,0.84691164,3122.7,3121.8,0.00110358]
[1768177343505,0.16033,3122.9,3121.3,0.14049802]
[1768177343701,0.84622061,3122.8,3121.3,0.14049802]
[1768177344008,0.84622061,3122.7,3121.3,0.14049802]
[1768177344312,1.41333,3122.9,3121.3,0.14049802]
[1768177344501,0.84567248,3122.8,3121.3,0.14358946]
[1768177344808,0.16033,3122.9,3121.3,0.14358946]
[1768177345010,0.84568085,3122.8,3121.3,0.14358946]
[1768177345307,0.84568085,3122.7,3121.3,0.14358946]
[1768177345512,0.16033,3122.9,3121.3,0.14358946]
[1768177345710,0.84526717,3122.8,3121.3,0.14358946]
[1768177345907,0.84526717,3122.7,3121.3,0.14358946]
[1768177346113,0.16033,3122.9,3121.3,0.14358946]
[1768177346306,0.84488505,3122.8,3121.3,0.14358946]
[1768177346614,0.84488505,3122.7,3121.3,0.14358946]
[1768177346816,0.16033,3122.9,3121.3,0.14358946]
[1768177347008,0.84497797,3122.8,3121.3,0.14358946]
[1768177347208,0.84497797,3122.7,3121.3,0.14358946]
[1768177347409,0.16033,3122.9,3121.3,0.14358946]
[1768177347609,0.84473598,3122.8,3121.3,0.14358946]
[1768177347808,0.84473598,3122.7,3121.3,0.14358946]
[1768177348011,0.16034,3122.7,3121.3,0.14358946]
[1768177349106,0.84458705,3122.6,3121.3,0.14358946]
[1768177349316,0.16035,3122.6,3121.3,0.14358946]
[1768177349514,0.84443979,3122.5,3121.3,0.00309144]
[1768177349715,0.84443979,3122.4,3120.8,0.14049802]
[1768177349914,0.84443979,3122.3,3120.8,0.14049802]
[1768177350114,0.00325643,3122.9,3120.8,0.14049802]
[1768177350316,1.253,3123.0,3120.8,0.14049802]
[1768177350317,0.16036,3122.2,3120.8,0.14049802]
[1768177350813,0.16036,3122.2,3120.8,0.14301484]
[1768177351516,0.16037,3122.0,3120.8,0.00251682]
[1768177351707,0.16038,3121.8,3120.8,0.00251682]
[1768177352219,0.1604,3121.5,3120.8,0.00251682]
[1768177352414,0.16042,3121.2,3119.8,0.14049802]
[1768177353315,0.16289629,3121.2,3119.8,0.14310765]
[1768177353817,0.00247629,3121.2,3119.8,0.14310765]
[1768177354207,0.00247629,3121.2,3119.8,6.14310765]
[1768177354513,0.16035,3122.5,3119.9,0.14672432]
[1768177354718,1.253,3122.3,3119.9,0.14672432]
[1768177354910,0.16037,3122.1,3119.9,0.14672432]
[1768177355110,0.84300969,3122.0,3119.9,0.14672432]
[1768177355407,0.00314786,3122.0,3119.9,0.14672432]
[1768177355807,1.00330771,3121.9,3119.9,0.14672432]
[1768177356114,0.16038,3121.9,3119.9,0.14672432]
[1768177357717,0.16039,3121.7,3119.9,0.14672432]
[1768177359419,1.25614786,3122.0,3119.9,0.14672432]
[1768177359607,0.84327052,3121.9,3119.9,0.14672432]
[1768177359812,0.00314786,3122.0,3119.9,0.14672432]
[1768177362224,0.16351786,3122.0,3119.9,0.14672432]
[1768177362523,0.84453384,3121.9,3119.9,0.14672432]
[1768177362723,0.16351786,3122.0,3119.9,0.14672432]
[1768177362922,0.84452901,3121.9,3119.9,0.14672432]
[1768177363122,0.84507949,3121.8,3119.9,0.14672432]
[1768177363423,0.16351786,3122.0,3119.9,0.14672432]
[1768177363630,0.84512524,3121.9,3119.9,0.14672432]
[1768177363817,0.16351786,3122.0,3119.9,0.14672432]
[1768177364017,0.84512595,3121.9,3119.9,0.14672432]
[1768177364217,0.84588239,3121.8,3119.9,0.14672432]
[1768177364417,0.16351786,3122.0,3119.9,0.14672432]
[1768177364616,0.84588452,3121.9,3119.9,0.14672432]
[1768177364824,0.84588452,3121.8,3119.9,0.14672432]
[1768177365025,0.16038,3121.9,3119.9,0.14672432]
[1768177365227,0.84646854,3121.8,3119.9,0.14672432]
[1768177365425,0.84646854,3121.7,3119.9,0.14672432]
[1768177365630,0.16038,3121.9,3119.9,0.14672432]
[1768177365822,0.84646827,3121.8,3119.9,0.14672432]
[1768177366020,0.84646827,3121.7,3120.0,0.14672432]
[1768177366221,0.00314786,3122.0,3120.2,0.14672432]
[1768177366424,0.84715325,3121.9,3120.2,0.14672432]
[1768177366626,0.84715325,3121.8,3120.2,0.14672432]
[1768177366923,0.00314786,3122.0,3120.2,0.14672432]
[1768177367123,0.84715542,3121.9,3120.2,0.14672432]
[1768177367429,0.84715542,3121.8,3120.2,0.14672432]
[1768177367628,0.00314786,3122.0,3120.2,0.14672432]
[1768177367928,0.84789879,3121.9,3120.2,0.14672432]
[1768177368123,0.84789879,3121.8,3120.2,0.14672432]
[1768177368327,0.84789879,3121.7,3120.2,0.14672432]
[1768177369231,1.00828879,3121.7,3120.2,0.14672432]
[1768177369528,0.84789879,3121.6,3120.2,0.14672432]
[1768177369830,0.84789879,3121.5,3120.2,0.14672432]
[1768177370128,0.84981283,3121.4,3120.2,0.14672432]
[1768177370331,0.16038,3121.8,3120.2,0.14672432]
[1768177370627,0.84982189,3121.7,3120.2,0.14672432]
[1768177370829,0.84982189,3121.6,3120.2,0.14672432]
[1768177371021,0.84982189,3121.5,3120.2,0.14672432]
[1768177371223,0.84982189,3121.4,3120.2,0.14672432]
[1768177371422,0.16038,3121.8,3120.2,0.14672432]
[1768177371423,0.84982189,3121.3,3120.2,0.14672432]
[1768177371630,0.16038,3121.8,3120.2,0.14672432]
[1768177371926,0.85022201,3121.7,3120.2,0.14672432]
[1768177372127,0.85022201,3121.6,3120.2,0.14672432]
[1768177372330,0.85022201,3121.5,3120.2,0.14672432]
[1768177372527,0.16038,3121.8,3120.2,0.14672432]
[1768177372528,0.85022201,3121.4,3120.2,0.14672432]
[1768177372728,0.85022201,3121.3,3120.2,0.14672432]
[1768177372927,0.16038,3121.8,3120.2,0.14672432]
[1768177373125,0.70139401,3121.7,3120.4,0.14672432]
[1768177373325,0.00314786,3122.0,3120.7,0.14672432]
[1768177376437,2.25958725,3122.8,3120.8,0.14672432]
[1768177376630,2.25958725,3122.9,3120.8,0.14672432]
[1768177376931,0.16033,3122.8,3120.8,0.14672432]
[1768177377134,0.16033,3122.8,3121.1,0.14672432]
[1768177377634,0.00329247,3122.8,3121.1,0.14672432]
[1768177380634,0.16036,3122.4,3121.1,0.14672432]
[1768177382836,0.16037,3122.1,3120.6,0.14672432]
[1768177384331,2.26287972,3122.8,3120.6,0.14672432]
[1768177384633,0.00329247,3122.8,3120.8,0.14514449]
[1768177385434,0.85072168,3122.7,3120.8,0.14514449]
[1768177385634,0.85072168,3122.6,3120.8,0.14514449]
[1768177385828,0.85072168,3122.5,3120.8,0.14514449]
[1768177386024,0.85072168,3122.4,3120.8,0.14514449]
[1768177386228,0.85072168,3122.3,3120.8,0.14514449]
[1768177386438,0.00329247,3122.8,3120.8,0.14514449]
[1768177386630,0.85073491,3122.7,3120.8,0.14514449]
[1768177386831,0.85073491,3122.6,3120.8,0.14514449]
[1768177387035,0.85073491,3122.5,3120.8,0.14514449]
[1768177387336,0.85073491,3122.4,3120.8,0.14514449]
[1768177387538,0.16034,3122.7,3120.8,0.14514449]
[1768177387539,0.85073491,3122.3,3120.8,0.14514449]
[1768177387739,0.16035,3122.4,3120.8,0.14514449]
[1768177388030,0.16035,3122.4,3120.1,3.207]
[1768177388031,0.85077011,3122.3,3120.4,0.14514449]
[1768177388235,0.16037,3122.0,3120.4,0.14514449]
[1768177388536,0.85077011,3121.9,3120.4,0.14514449]
[1768177389136,1.01115011,3121.9,3120.4,0.14514449]
[1768177389336,0.85077011,3121.8,3120.4,0.14514449]
[1768177390533,0.16039,3121.7,3120.4,0.14514449]
[1768177393233,0.16036,3122.3,3120.4,0.14514449]
[1768177393433,0.85134963,3122.2,3120.4,0.14514449]
[1768177393633,0.85134963,3122.1,3120.4,0.14514449]
[1768177393833,0.85134963,3122.0,3120.4,0.14514449]
[1768177394037,0.85134963,3121.9,3120.4,0.14514449]
[1768177394237,0.85134963,3121.8,3120.4,0.14514449]
[1768177394443,0.16036,3122.2,3120.4,0.14514449]
[1768177394638,0.85140067,3122.1,3120.4,0.14514449]
[1768177394944,0.85140067,3122.0,3120.4,0.14514449]
[1768177395134,0.85140067,3121.9,3120.4,0.14514449]
[1768177395336,0.85140067,3121.8,3120.4,0.14514449]
[1768177395542,0.16036,3122.2,3120.4,0.14514449]
[1768177395745,0.85147531,3122.1,3120.4,0.14514449]
[1768177395937,0.85147531,3122.0,3120.4,0.14514449]
[1768177396140,0.85147531,3121.9,3120.4,0.14514449]
[1768177396439,0.85147531,3121.8,3120.4,0.14514449]
[1768177396742,0.16036,3122.2,3120.4,0.14514449]
[1768177397040,0.85154436,3122.1,3120.4,0.14514449]
[1768177397243,0.85154436,3122.0,3120.4,0.14514449]
[1768177397448,0.85154436,3121.9,3120.4,0.14514449]
[1768177397742,0.85154436,3121.8,3120.4,0.14514449]
[1768177397943,2.25958725,3122.6,3120.4,0.14514449]
[1768177398245,0.85027466,3122.5,3120.9,0.14816196]
[1768177398545,0.85027466,3122.4,3120.9,0.14816196]
[1768177398748,0.85018489,3122.3,3120.9,0.14816196]
[1768177398947,0.16363247,3122.8,3120.9,0.14816196]
[1768177399250,0.85017447,3122.7,3120.9,0.14816196]
[1768177399442,0.85017447,3122.6,3120.9,0.14816196]
[1768177399642,0.85017447,3122.5,3120.9,0.14816196]
[1768177399847,0.85020612,3122.4,3120.9,0.14816196]
[1768177400047,0.16363247,3122.8,3120.9,0.14816196]
[1768177400248,0.85026949,3122.7,3120.9,0.14816196]
[1768177400445,0.85026949,3122.6,3120.9,0.14816196]
[1768177400641,0.85026949,3122.5,3120.9,0.14816196]
[1768177400841,0.85026949,3122.4,3120.9,0.14816196]
[1768177401041,0.16363247,3122.8,3120.9,0.14816196]
[1768177401241,0.85034844,3122.7,3120.9,0.14816196]
[1768177401442,0.85034844,3122.6,3120.9,0.14816196]
[1768177401642,0.85034844,3122.5,3120.9,0.14816196]
[1768177401843,0.85034844,3122.4,3120.9,0.14816196]
[1768177402050,0.16363247,3122.8,3120.9,0.14816196]
[1768177402352,0.85033692,3122.7,3120.9,0.14816196]
[1768177402554,0.85033692,3122.6,3120.9,0.14816196]
[1768177402851,0.16363247,3122.8,3120.9,0.14816196]
[1768177403056,0.85031729,3122.7,3121.0,0.14816196]
[1768177403249,0.16363247,3122.8,3121.0,0.14816196]
[1768177403451,0.85030143,3122.7,3121.0,0.14816196]
[1768177403647,0.16363247,3122.8,3121.0,0.14816196]
[1768177403840,0.8503015,3122.7,3121.0,0.14816196]
[1768177404046,0.16363247,3122.8,3121.0,0.14816196]
[1768177404246,0.85021319,3122.7,3121.0,0.14816196]
[1768177404438,0.16363247,3122.8,3121.0,0.14816196]
[1768177404648,0.8502159,3122.7,3121.0,0.14816196]
[1768177404848,0.8502159,3122.6,3121.0,0.14816196]
[1768177405045,0.16363247,3122.8,3121.0,0.14816196]
[1768177405250,0.85014828,3122.7,3121.0,0.14816196]
[1768177405551,0.16363247,3122.8,3121.0,0.14816196]
[1768177405852,0.85015319,3122.7,3121.0,0.14816196]
[1768177406052,0.85015319,3122.6,3121.0,0.14816196]
[1768177406256,0.16363247,3122.8,3121.0,0.14816196]
[1768177406552,0.85009287,3122.7,3121.0,0.14816196]
[1768177406854,0.85009287,3122.6,3121.0,0.14816196]
[1768177407054,0.16363247,3122.8,3121.0,0.14816196]
[1768177407354,0.85005067,3122.7,3121.0,0.14816196]
[1768177407556,0.16363247,3122.8,3121.0,0.14816196]
[1768177407751,0.85005065,3122.7,3121.0,0.14816196]
[1768177407959,0.16363247,3122.8,3121.0,0.14816196]
[1768177408258,0.85003576,3122.7,3121.0,0.14816196]
[1768177408453,0.16363247,3122.8,3121.0,0.14816196]
[1768177408647,0.85011576,3122.7,3121.0,0.14816196]
[1768177408952,0.16363247,3122.8,3121.0,0.14816196]
[1768177409148,0.85010873,3122.7,3121.0,0.14816196]
[1768177409348,0.16363247,3122.8,3121.0,0.14816196]
[1768177409557,0.85018644,3122.7,3121.1,0.14816196]
[1768177409764,0.00329247,3122.8,3121.2,0.14816196]
[1768177410958,0.00329247,3122.8,3121.4,0.14816196]
[1768177412568,0.84993354,3122.7,3121.4,0.14816196]
[1768177412769,0.00329247,3122.8,3121.4,0.14816196]
[1768177412964,0.84993412,3122.7,3121.4,0.14816196]
[1768177413165,0.00329247,3122.8,3121.4,0.14816196]
[1768177413465,0.84992345,3122.7,3121.4,0.14816196]
[1768177413763,0.00329247,3122.8,3121.4,0.14816196]
[1768177413960,0.84992331,3122.7,3121.4,0.14816196]
[1768177414262,0.00329247,3122.8,3121.4,0.14816196]
[1768177414463,0.84994387,3122.7,3121.4,0.14816196]
[1768177414658,0.00329247,3122.8,3121.4,0.14816196]
[1768177414867,0.00329247,3122.8,3121.6,0.14227419]
[1768177415263,0.00329247,3122.8,3121.7,0.14227419]
[1768177415464,0.16029,3123.8,3121.9,0.14227419]
[1768177415663,0.16029,3123.8,3121.8,0.16038]
[1768177415664,0.84949542,3123.7,3122.1,0.14227419]
[1768177415968,0.16025,3124.4,3122.3,0.14227419]
[1768177416156,0.84942387,3124.3,3122.3,0.14227419]
[1768177416363,0.84942387,3124.2,3122.4,0.14227419]
[1768177416666,0.84942387,3124.1,3122.4,0.14480744]
[1768177416859,0.84942387,3124.0,3122.4,0.14480744]
[1768177417056,0.00323113,3124.2,3122.4,0.14480744]
[1768177417260,0.84827569,3124.1,3122.4,0.14480744]
[1768177417455,0.16349113,3124.2,3122.4,0.14480744]
[1768177417456,0.84827569,3124.0,3122.4,0.14480744]
[1768177417659,0.16349113,3124.2,3122.4,0.14480744]
[1768177417855,0.84827609,3124.1,3122.4,0.14480744]
[1768177418071,0.84827609,3124.0,3122.4,0.14480744]
[1768177418264,0.16349113,3124.2,3122.4,0.14480744]
[1768177418466,0.84794047,3124.1,3122.4,0.14480744]
[1768177418663,0.16349113,3124.2,3122.4,0.14480744]
[1768177418962,0.84792602,3124.1,3122.4,0.14480744]
[1768177419163,0.16349113,3124.2,3122.4,0.14480744]
[1768177420968,0.00323113,3124.2,3122.4,0.14480744]
[1768177421167,0.00323113,3124.2,3122.7,0.14227419]
[1768177424378,0.00323113,3124.2,3122.7,0.30261419]
[1768177424571,0.00323113,3124.2,3122.8,0.14227419]
[1768177426270,0.00323113,3124.2,3122.5,3.206]
[1768177426476,0.00323113,3124.2,3122.5,3.34827419]
[1768177426777,0.00323113,3124.2,3122.6,0.14227419]
[1768177433573,0.00323113,3124.2,3122.6,0.30261419]
[1768177433773,0.00323113,3124.2,3122.7,0.14227419]
[1768177434366,0.16022,3125.0,3123.0,0.14227419]
[1768177434577,0.84548155,3124.9,3123.0,0.14227419]
[1768177434776,0.16022,3125.0,3123.1,0.14227419]
[1768177434976,0.84543042,3124.9,3123.1,0.14227419]
[1768177435177,0.16019,3125.5,3123.1,0.14227419]
[1768177435370,0.16021,3125.1,3123.1,0.14227419]
[1768177435568,1.00560152,3125.0,3123.1,0.14227419]
[1768177435773,0.84538152,3124.9,3123.1,0.14227419]
[1768177436680,1.00561152,3124.9,3123.1,0.14227419]
[1768177436976,0.84538152,3124.8,3123.1,0.14227419]
[1768177441677,0.00370037,3125.5,3123.5,0.14227419]
[1768177441878,0.00370037,3125.5,3123.7,0.14227419]
[1768177441879,0.84641446,3125.4,3123.7,0.14227419]
[1768177442074,0.00370037,3125.5,3123.7,0.14227419]
[1768177442279,0.84665953,3125.4,3123.7,0.14227419]
[1768177442474,0.00370037,3125.5,3123.7,0.14227419]
[1768177443080,0.84682045,3125.4,3123.7,0.14227419]
[1768177443283,0.00370037,3125.5,3123.7,0.14227419]
[1768177443982,0.84645836,3125.4,3123.7,0.14227419]
[1768177444285,1.13684606,3125.3,3123.4,0.13659284]
[1768177444485,0.84645836,3125.2,3123.4,0.13659284]
[1768177448983,0.29072252,3125.1,3123.4,0.13659284]
[1768177449188,1.00667836,3125.0,3123.4,0.13659284]
[1768177449389,0.84645836,3124.9,3123.4,0.13659284]
[1768177453791,1.00668836,3124.9,3123.4,0.13659284]
[1768177453989,1.00668836,3124.8,3123.4,0.13659284]
[1768177454194,0.84645836,3124.7,3123.4,0.13659284]
[1768177454997,1.00669836,3124.7,3123.1,1.498]
[1768177455294,0.16024,3124.7,3123.1,1.498]
[1768177455598,0.84749876,3124.6,3123.1,1.498]
[1768177455799,0.84753071,3124.5,3123.1,1.498]
[1768177455988,0.84753071,3124.4,3122.9,3.35171016]
[1768177456189,0.84753071,3124.3,3122.9,3.35171016]
[1768177456389,0.29012805,3124.6,3122.9,3.35171016]
[1768177456591,0.84765873,3124.5,3122.9,3.35171016]
[1768177456888,0.84765873,3124.4,3122.9,3.35171016]
[1768177457086,0.84765873,3124.3,3122.9,3.35171016]
[1768177457292,0.29012805,3124.6,3122.9,3.35171016]
[1768177457498,0.8486125,3124.5,3122.9,3.35171016]
[1768177457699,0.8486125,3124.4,3122.9,0.14671016]
[1768177457900,1.0088625,3124.4,3122.5,1.499]
[1768177458202,0.8486125,3124.3,3122.5,1.499]
[1768177458591,0.8486125,3124.3,3122.5,1.64571016]
[1768177459796,1.13855561,3124.3,3122.5,1.64571016]
[1768177460001,0.97829561,3124.2,3122.5,1.64571016]
[1768177460202,0.8486125,3124.1,3122.5,1.64571016]
[1768177461001,0.8486125,3124.1,3122.6,0.14671016]
[1768177461201,0.16026,3124.3,3122.6,0.14671016]
[1768177461499,0.84862642,3124.2,3122.6,0.14671016]
[1768177461696,0.84862642,3124.1,3122.6,0.14671016]
[1768177461899,0.16026,3124.3,3122.6,0.14671016]
[1768177462200,0.84862697,3124.2,3122.6,0.14671016]
[1768177462405,0.84862697,3124.1,3122.6,0.14671016]
[1768177462698,0.16026,3124.3,3122.6,0.14671016]
[1768177462900,0.84859992,3124.2,3122.6,0.14671016]
[1768177463102,0.84859992,3124.1,3122.6,0.14671016]
[1768177463304,0.16026,3124.3,3122.6,0.14671016]
[1768177463603,0.16027,3124.0,3122.4,0.00253325]
[1768177463805,0.84857315,3123.9,3122.4,0.00253325]
[1768177465194,0.16028,3123.9,3122.4,0.00253325]
[1768177465390,0.84819233,3123.8,3122.4,0.00253325]
[1768177468106,0.16029,3123.7,3122.4,0.00253325]
[1768177468292,0.12895833,3123.5,3121.4,2.8475005]
[1768177468599,0.12642508,3123.4,3121.4,0.14671016]
[1768177469303,0.12642508,3123.4,3121.4,0.1507787]
[1768177469701,1.00752635,3123.3,3121.4,0.1507787]
[1768177469898,0.84721635,3123.2,3121.4,0.1507787]
[1768177471208,0.16431492,3123.3,3121.4,0.1507787]
[1768177471701,0.00400492,3123.3,3121.5,0.14671016]
[1768177472296,0.00400492,3123.3,3121.8,0.30709016]
[1768177472497,0.00400492,3123.3,3121.9,0.14671016]
[1768177474201,0.00400492,3123.3,3121.9,0.30709016]
[1768177474408,0.00400492,3123.3,3122.0,0.1446645]
[1768177493318,0.00400492,3123.3,3122.5,0.98619444]
[1768177495521,0.00400492,3123.3,3122.5,1.13085894]
[1768177495729,0.00400492,3123.3,3122.9,1.13085894]
[1768177495926,0.00400492,3123.3,3123.0,0.1446645]
[1768177498721,0.00400492,3123.3,3122.4,0.98619444]
[1768177499124,0.00400492,3123.3,3122.3,0.1446645]
[1768177501125,0.00400492,3123.3,3122.3,1.13085894]
[1768177501320,0.00400492,3123.3,3122.5,1.13085894]
[1768177502528,0.00400492,3123.3,3122.8,0.1446645]
[1768177502725,0.98619444,3124.0,3122.8,0.1446645]
[1768177502926,0.98619444,3123.8,3122.4,0.1446645]
[1768177503125,0.85155108,3123.7,3122.4,1.13085894]
[1768177503820,0.98619444,3123.6,3122.4,0.1446645]
[1768177504125,0.85155108,3123.5,3122.4,0.1446645]
[1768177504523,0.98619444,3123.4,3122.4,0.1446645]
[1768177504728,0.85155108,3123.3,3122.4,0.1446645]
[1768177504928,0.98619444,3123.4,3122.4,0.1446645]
[1768177505131,0.85154627,3123.3,3122.4,0.1446645]
[1768177505332,0.98619444,3123.6,3122.4,0.1446645]
[1768177505524,0.85153045,3123.5,3122.4,1.13085894]
[1768177505720,0.85153045,3123.4,3122.4,1.13085894]
[1768177505926,0.85153045,3123.3,3122.4,1.13085894]
[1768177506121,0.00318562,3123.7,3122.4,0.1446645]
[1768177506325,2.25958725,3123.6,3121.6,0.13973142]
[1768177506526,0.98619444,3122.5,3121.4,0.00406854]
[1768177506725,0.98619444,3122.3,3121.4,0.00406854]
[1768177506930,0.16034,3122.8,3121.4,0.00406854]
[1768177506931,0.98619444,3122.1,3121.4,0.00406854]
[1768177507326,0.98619444,3121.9,3120.8,0.13973142]
[1768177508432,0.98619444,3121.9,3120.8,0.14266103]
[1768177508635,0.98619444,3122.1,3120.8,0.14266103]
[1768177508833,0.84932036,3122.0,3120.8,0.14266103]
[1768177509041,0.84932036,3121.9,3120.8,0.14266103]
[1768177509340,0.16037,3122.2,3120.8,0.14266103]
[1768177509541,0.84844612,3122.1,3120.8,0.14266103]
[1768177509739,0.16037,3122.2,3120.8,0.14266103]
[1768177509740,0.84844612,3122.0,3120.8,0.14266103]
[1768177509942,0.16037,3122.2,3120.8,0.14266103]
[1768177510138,0.84844588,3122.1,3120.8,0.14266103]
[1768177510343,1.38011946,3122.6,3120.8,0.14266103]
[1768177510535,0.84777155,3122.5,3120.8,0.14266103]
[1768177510746,0.84777155,3122.4,3120.8,0.14266103]
[1768177510941,0.84777155,3122.3,3120.8,0.14266103]
[1768177511238,0.16033,3122.9,3120.8,0.14266103]
[1768177511445,0.8474024,3122.8,3120.8,0.14266103]
[1768177511639,0.8474024,3122.7,3120.8,0.14266103]
[1768177511942,0.8474024,3122.6,3120.8,0.14266103]
[1768177512132,0.8474024,3122.5,3120.8,0.14266103]
[1768177512333,0.8474024,3122.4,3120.8,0.14266103]
[1768177512531,0.16033,3122.9,3120.8,1.58273775]
[1768177512735,0.84711453,3122.8,3120.9,0.13518189]
[1768177512936,0.84711453,3122.7,3120.9,0.13518189]
[1768177513137,0.16033,3122.9,3120.9,0.13518189]
[1768177514139,0.84695409,3122.8,3120.9,0.13518189]
[1768177514348,0.16033,3122.9,3120.9,0.13518189]
[1768177515940,0.12836469,3123.5,3121.2,0.13518189]
[1768177516242,0.84680617,3123.4,3121.4,0.13518189]
[1768177516430,0.84680617,3123.3,3121.4,0.13518189]
[1768177516634,0.16029,3123.6,3121.4,0.13518189]
[1768177516842,0.16029,3123.6,3121.6,0.13518189]
[1768177516843,0.84673543,3123.5,3121.6,0.13518189]
[1768177517144,0.16029,3123.6,3121.6,0.13518189]
[1768177517444,0.84668708,3123.5,3121.6,0.13518189]
[1768177517638,0.16029,3123.6,3121.6,0.13518189]
[1768177517846,0.85306694,3123.5,3121.6,0.13518189]
[1768177518056,0.16029,3123.6,3121.6,0.13518189]
[1768177518347,0.85306236,3123.5,3121.6,0.13518189]
[1768177518548,0.16029,3123.6,3121.6,0.13518189]
[1768177518739,0.00318562,3123.7,3121.8,0.13518189]
[1768177518935,0.85310712,3123.6,3121.8,0.13518189]
[1768177519135,0.00318562,3123.7,3121.8,0.13518189]
[1768177519344,0.85310723,3123.6,3121.9,0.13518189]
[1768177519542,0.00318562,3123.7,3121.9,0.13518189]
[1768177521748,0.00318562,3123.7,3122.0,0.13518189]
[1768177531547,0.00318562,3123.7,3122.6,0.29552189]
[1768177531849,0.00318562,3123.7,3122.7,0.13518189]
[1768177532549,0.16023,3124.8,3122.7,0.13518189]
[1768177532851,0.85301427,3124.7,3122.7,0.13518189]
[1768177533051,0.85301427,3124.6,3122.9,0.13518189]
[1768177533244,0.98213674,3124.5,3122.9,0.13518189]
[1768177533442,0.12912247,3124.5,3122.9,0.13518189]
[1768177533641,0.1314917,3124.5,3122.9,0.13518189]
[1768177536449,0.00236923,3124.5,3122.9,0.13518189]
[1768177539649,0.85288659,3124.4,3122.9,0.13518189]
[1768177539850,0.00236923,3124.5,3122.9,0.13518189]
[1768177540052,0.28948227,3124.3,3122.5,0.13779408]
[1768177540351,0.85347112,3124.2,3122.5,0.13779408]